bitfinex-derivatives/quotes_ETHF0:USTF0_20250520
["timestamp","ask_amount","ask_price","bid_price","bid_amount"]
[1747708439360,0.77431,2582.3,2582.2,0.0058054]
[1747708439560,0.77426,2582.5,2582.2,0.0058054]
[1747708439761,2.29629,2582.4,2582.2,0.0058054]
[1747708439963,2.29631,2582.4,2582.2,0.0058054]
[1747708440157,14.262,2582.4,2582.2,0.0058054]
[1747708440358,2.74,2582.4,2582.2,0.0058054]
[1747708440560,0.77431,2582.3,2582.2,0.0058054]
[1747708440866,2.29631,2582.3,2582.2,0.0058054]
[1747708441067,0.77441,2582.0,2581.8,3.2078]
[1747708441255,1.522,2581.9,2581.4,3.2078]
[1747708441762,0.77453,2581.6,2580.8,1.4527]
[1747708441957,1.403,2581.5,2581.0,0.77468]
[1747708442157,1.40872115,2581.5,2581.1,0.77466]
[1747708442360,8.20092115,2581.5,2581.1,0.77466]
[1747708442963,8.97547115,2581.5,2581.0,3.9882854]
[1747708443167,10.94092115,2581.5,2581.1,0.77466]
[1747708443867,10.94092115,2581.5,2581.0,3.2136054]
[1747708444060,10.94092115,2581.5,2581.2,0.77462]
[1747708444255,10.94092115,2581.5,2581.1,1.4809]
[1747708444460,0.77467,2581.1,2581.0,0.0058054]
[1747708444967,10.77467,2581.1,2581.0,0.0058054]
[1747708445465,18.51467,2581.1,2581.0,0.0058054]
[1747708446068,0.77478,2580.8,2580.0,4.6684]
[1747708446367,0.77476,2580.8,2580.3,0.77489]
[1747708446562,6.7922,2580.8,2580.0,4.6684]
[1747708446767,8.3015,2580.8,2580.4,0.77488]
[1747708447168,11.81627,2580.8,2580.4,2.23548]
[1747708447366,1.1953392,2580.8,2580.7,3.98259]
[1747708447659,0.09058592,2581.5,2580.7,3.98259]
[1747708447660,0.09058592,2581.5,2580.7,3.2078]
[1747708447865,0.77464,2581.2,2580.8,2.23474]
[1747708448170,2.1874,2581.4,2580.9,0.77472]
[1747708448461,1.4128,2581.4,2581.0,1.46]
[1747708448657,4.77559,2581.4,2581.0,2.23469]
[1747708448852,4.001,2581.4,2581.0,1.46]
[1747708449078,4.7756,2581.4,2581.0,1.46]
[1747708449279,6.741,2581.4,2581.0,2.2347]
[1747708449568,7.51558,2581.4,2581.0,2.23469]
[1747708449963,7.51558,2581.4,2581.1,0.50455734]
[1747708450467,6.741,2581.4,2581.1,1.27921734]
[1747708450771,0.77462,2581.3,2581.1,0.50455734]
[1747708450959,1.4684,2581.2,2581.1,0.50455734]
[1747708451267,4.2084,2581.2,2581.1,0.50455734]
[1747708451467,6.7966,2581.2,2581.0,2.23469]
[1747708452270,6.7966,2581.2,2581.1,0.77467]
[1747708452464,6.7966,2581.2,2581.0,2.23468]
[1747708452968,6.7966,2581.2,2581.1,0.50450184]
[1747708453170,6.81006184,2581.2,2581.1,1.27917184]
[1747708453470,6.81006184,2581.2,2581.1,0.50450184]
[1747708453671,7.58470184,2581.2,2581.1,0.50450184]
[1747708453863,6.81006184,2581.2,2581.1,0.50450184]
[1747708454061,7.58470184,2581.2,2581.1,0.50450184]
[1747708454463,6.81006184,2581.2,2581.1,0.50450184]
[1747708455873,12.58470184,2581.2,2581.1,0.50450184]
[1747708456170,15.79250184,2581.2,2581.1,0.50450184]
[1747708457166,0.77485,2580.5,2580.4,1.31651112]
[1747708457364,3.2078,2580.5,2580.4,1.31651112]
[1747708457568,11.479,2580.6,2580.5,0.77483]
[1747708458263,14.219,2580.6,2580.5,0.77483]
[1747708458468,2.74,2580.6,2580.5,0.77483]
[1747708458771,2.74,2580.6,2580.5,0.77485]
[1747708459273,2.74,2580.6,2580.5,2.18925]
[1747708459673,2.74,2580.6,2580.5,1.4144]
[1747708460365,2.74,2580.6,2580.5,0.77485]
[1747708460572,2.74,2580.6,2580.5,2.17735]
[1747708460972,3.51482,2580.6,2580.5,1.4025]
[1747708461166,2.74,2580.6,2580.5,1.4025]
[1747708461366,3.51484,2580.6,2580.4,1.31651112]
[1747708461565,2.74,2580.6,2580.5,2.17735]
[1747708462369,2.74,2580.6,2580.5,1.4025]
[1747708463475,2.74,2580.6,2580.5,2.17735]
[1747708464478,2.74,2580.6,2580.5,7.17735]
[1747708464874,2.74,2580.6,2580.5,2.17735]
[1747708465375,2.19309,2581.1,2580.9,0.77473]
[1747708466176,2.74,2581.1,2581.0,0.7747]
[1747708466477,2.74,2581.1,2580.9,0.77471]
[1747708466881,3.51467,2581.1,2580.9,0.77471]
[1747708467178,1.42616184,2581.2,2580.7,1.4837]
[1747708467378,2.20080184,2581.2,2581.0,0.77468]
[1747708467880,1.93448,2584.1,2581.3,3.2078]
[1747708468172,6.451,2585.5,2582.1,3.2078]
[1747708468173,3.2078,2583.0,2582.1,3.2078]
[1747708468378,40.8,2583.1,2581.9,0.77441]
[1747708468571,0.77452,2581.6,2581.4,3.2078]
[1747708468773,0.77452,2581.6,2581.3,2.74]
[1747708468774,0.77458,2581.4,2581.3,2.74]
[1747708469080,11.195,2581.4,2581.3,2.74]
[1747708469281,13.935,2581.4,2581.2,0.0058054]
[1747708469675,1.5681,2581.3,2581.2,0.0058054]
[1747708470180,4.3081,2581.3,2581.2,0.0058054]
[1747708470590,4.3081,2581.3,2581.2,0.47327018]
[1747708471980,9.3081,2581.3,2581.2,0.47327018]
[1747708473490,4.3081,2581.3,2581.2,0.47327018]
[1747708473985,10.08271,2581.3,2581.2,0.47327018]
[1747708474481,5.16757477,2581.3,2581.2,0.47327018]
[1747708474684,10.16757477,2581.3,2581.2,0.47327018]
[1747708474992,11.75967477,2581.3,2581.2,0.47327018]
[1747708475584,0.77479,2580.7,2580.6,1.0127905]
[1747708475783,0.77491,2580.3,2580.2,3.16004456]
[1747708475985,3.98271,2580.3,2580.2,1.84353344]
[1747708476288,11.72271,2580.3,2580.2,1.84353344]
[1747708477382,14.72591,2580.3,2580.2,1.84353344]
[1747708477781,13.951,2580.3,2579.6,4.52431112]
[1747708477984,0.77507,2579.8,2579.6,1.31651112]
[1747708478281,13.45189,2579.7,2579.6,1.31651112]
[1747708478785,0.77515,2579.5,2579.4,0.38228312]
[1747708479188,8.51515,2579.5,2579.4,0.38228312]
[1747708479378,3.51515,2579.5,2579.4,0.38228312]
[1747708479584,8.51515,2579.5,2579.4,0.38228312]
[1747708480379,3.51515,2579.5,2579.4,0.38228312]
[1747708480585,19.71215,2579.5,2579.4,0.38228312]
[1747708480993,19.71215,2579.5,2579.4,3.12e-06]
[1747708487608,60.51215,2579.5,2579.4,3.12e-06]
[1747708488208,57.77215,2579.5,2579.4,3.12e-06]
[1747708489703,57.77215,2579.5,2579.4,0.08486789]
[1747708489908,46.57515,2579.5,2579.4,0.08486789]
[1747708490207,57.77815,2579.5,2579.4,0.08486789]
[1747708491005,0.77536,2578.8,2578.7,1.4797]
[1747708491307,11.97836,2578.8,2578.7,1.4797]
[1747708492007,11.51336,2578.8,2578.7,1.4797]
[1747708492512,0.77536,2578.8,2578.7,1.4797]
[1747708492703,11.51336,2578.8,2578.7,1.4797]
[1747708493206,0.00581677,2579.0,2578.7,1.4797]
[1747708493402,10.739,2578.9,2578.7,1.4797]
[1747708493603,0.77536,2578.8,2578.7,1.4797]
[1747708498418,0.77539,2578.7,2578.6,2.74]
[1747708498606,0.77539,2578.7,2577.9,3.2078]
[1747708498607,1.93865,2578.5,2577.9,3.2078]
[1747708498809,0.77557,2578.1,2577.9,3.2078]
[1747708499311,0.77557,2578.1,2578.0,5.806]
[1747708499911,15.432,2578.4,2578.0,5.806]
[1747708500110,0.77557,2578.1,2578.0,5.806]
[1747708500619,10.74,2578.3,2578.0,11.58159]
[1747708500825,10.74,2578.3,2578.0,6.58159]
[1747708501116,10.74,2578.3,2578.1,0.77557]
[1747708501420,1.94411677,2579.0,2578.4,0.77547]
[1747708501421,10.74,2578.7,2578.4,0.77547]
[1747708501719,10.74,2578.7,2578.2,3.2078]
[1747708501914,0.7755,2578.4,2578.3,1.4857]
[1747708502121,0.7755,2578.4,2578.3,4.2257]
[1747708502619,0.7755,2578.4,2578.3,2.74]
[1747708502915,0.77563,2577.9,2577.8,0.00581677]
[1747708503128,11.51663,2577.9,2577.8,2.74581677]
[1747708503615,11.51663,2577.9,2577.1,0.50203053]
[1747708503616,0.77584,2577.2,2577.1,0.50203053]
[1747708503819,11.51684,2577.2,2577.1,0.50203053]
[1747708504009,0.77593,2576.9,2576.8,3.2078]
[1747708504214,0.77592,2577.0,2576.8,3.2078]
[1747708504626,0.00581677,2577.2,2576.8,8.2078]
[1747708504918,0.00581677,2577.2,2577.1,3.98367]
[1747708505120,0.00581677,2577.2,2577.1,8.98367]
[1747708505326,0.00581677,2577.2,2577.1,9.778]
[1747708505515,0.00581677,2577.2,2577.1,10.55387]
[1747708505725,10.743,2577.9,2577.3,0.7758]
[1747708505917,10.743,2577.9,2577.5,3.2078]
[1747708506118,11.51864,2577.9,2577.6,1.5342]
[1747708506318,1.4733,2578.3,2577.6,1.5342]
[1747708506519,11.51856,2578.2,2577.6,1.5342]
[1747708506812,11.51856,2578.2,2577.7,0.77569]
[1747708506813,0.00581677,2578.2,2577.7,0.77569]
[1747708507011,0.00581677,2578.2,2578.1,0.77557]
[1747708507216,0.00581677,2578.2,2577.9,0.00581677]
[1747708507423,0.00581677,2578.2,2577.9,3.10751677]
[1747708507623,0.00581677,2578.2,2578.0,0.43613946]
[1747708507820,0.00581677,2578.2,2578.1,1.5342]
[1747708508023,4.6811,2578.8,2578.1,4.742]
[1747708508024,3.2078,2578.8,2578.1,4.742]
[1747708508324,10.743,2579.0,2578.7,3.2078]
[1747708508522,3.2078,2579.8,2578.8,1.5342]
[1747708508716,0.7751,2579.7,2579.2,3.98302]
[1747708508916,10.743,2579.8,2579.3,1.4881]
[1747708509112,10.743,2579.8,2579.3,4.23391677]
[1747708509113,10.74881677,2579.8,2579.3,4.23391677]
[1747708509321,0.77514,2579.6,2579.3,4.23391677]
[1747708510225,0.00581677,2579.8,2579.3,9.23391677]
[1747708510519,1.9369,2580.9,2579.6,1.93781]
[1747708510520,10.743,2580.8,2579.6,1.93781]
[1747708510726,0.77479,2580.7,2580.3,3.2078]
[1747708510920,10.743,2580.8,2580.0,3.2078]
[1747708510921,12.67993,2580.8,2580.0,3.2078]
[1747708511121,3.2078,2580.4,2579.7,2.9768]
[1747708511327,0.77506,2579.8,2579.7,2.9768]
[1747708511527,0.77506,2579.8,2579.7,1.4881]
[1747708512628,0.00581677,2580.0,2579.7,1.4881]
[1747708512926,0.00581677,2580.0,2579.6,0.50203053]
[1747708513125,0.77509,2579.7,2579.6,0.50203053]
[1747708513328,11.51609,2579.7,2579.6,0.50203053]
[1747708513523,11.51609,2579.7,2579.5,1.5533]
[1747708513728,10.741,2579.7,2579.5,1.5533]
[1747708514116,0.00581677,2580.0,2579.5,6.5533]
[1747708514414,0.00581677,2580.0,2579.7,3.2078]
[1747708514618,0.77505,2579.9,2579.8,1.4785]
[1747708514822,0.00581677,2580.0,2579.8,1.4785]
[1747708515037,1.61571677,2580.0,2579.8,1.4785]
[1747708515331,0.00581677,2580.0,2579.8,1.4785]
[1747708516228,0.00581677,2580.0,2579.8,4.2185]
[1747708516727,0.78082677,2580.0,2579.8,4.2185]
[1747708517333,0.00581677,2580.0,2579.8,1.4785]
[1747708517824,0.00581677,2580.0,2579.9,0.77503]
[1747708518023,0.00581677,2580.0,2579.9,2.37163]
[1747708518229,0.00581677,2580.0,2579.9,12.10480618]
[1747708518632,1.5952,2580.7,2580.2,0.77492]
[1747708518633,0.77484,2580.6,2580.2,0.77492]
[1747708518932,10.738,2581.0,2580.3,4.7674]
[1747708519130,12.67478,2581.0,2580.3,1.5596]
[1747708519325,1.5952,2580.9,2580.3,4.7674]
[1747708519527,0.00581677,2580.9,2580.7,0.77477]
[1747708519733,0.00581677,2580.9,2580.8,1.5596]
[1747708519921,0.78054677,2580.9,2580.8,1.5596]
[1747708520526,0.00581677,2580.9,2580.8,1.5596]
[1747708521231,0.78054677,2580.9,2580.8,1.5596]
[1747708522537,0.00581677,2580.9,2580.8,2.33436]
[1747708522832,0.00581677,2580.9,2580.8,1.5596]
[1747708523134,0.00581677,2580.9,2580.8,2.33436]
[1747708523336,0.00581677,2580.9,2580.8,1.5596]
[1747708524435,0.00581677,2580.9,2580.8,2.33436]
[1747708525130,0.00581677,2580.9,2580.8,5.07436]
[1747708525437,0.00581677,2580.9,2580.8,4.2996]
[1747708525635,0.00581677,2580.9,2580.8,5.07436]
[1747708526728,4.7263,2581.9,2580.8,9.2996]
[1747708526929,1.5068,2581.8,2581.0,3.2078]
[1747708527130,0.7746,2581.4,2581.0,0.77469]
[1747708527340,1.5068,2581.3,2581.0,0.77469]
[1747708527732,1.5068,2581.3,2581.0,3.98249]
[1747708527935,1.5068,2581.3,2581.0,3.2078]
[1747708528433,1.5068,2581.3,2581.1,0.77465]
[1747708528841,1.5068,2581.3,2581.2,0.77464]
[1747708529136,1.5068,2581.3,2581.1,0.77465]
[1747708529528,1.5068,2581.3,2581.2,0.77464]
[1747708531235,0.00580919,2581.4,2581.3,0.77461]
[1747708531539,0.00580919,2581.4,2581.3,5.44761]
[1747708531938,0.00580919,2581.4,2581.3,10.44761]
[1747708532237,9.19e-06,2581.4,2581.3,13.18761]
[1747708532737,0.77426,2582.5,2582.1,0.77435]
[1747708533043,2.30739,2582.4,2582.1,0.77435]
[1747708533332,0.77437,2582.1,2582.0,3.2078]
[1747708533539,3.2078,2582.2,2581.8,0.00581677]
[1747708533739,2.30751,2582.0,2581.8,0.00581677]
[1747708534134,0.77443,2581.9,2581.8,0.00581677]
[1747708534340,2.30753,2581.9,2581.8,0.00581677]
[1747708535030,1.5331,2581.9,2581.8,0.00581677]
[1747708535438,1.5331,2581.9,2581.8,0.78027677]
[1747708535634,1.5331,2581.9,2581.8,3.98807677]
[1747708535841,10.519,2582.2,2582.0,0.77439]
[1747708536039,1.494,2582.1,2581.9,2.36452]
[1747708536336,1.494,2582.1,2582.0,2.74]
[1747708536534,2.26837,2582.1,2582.0,2.74]
[1747708537042,1.494,2582.1,2582.0,2.74]
[1747708537342,2.26838,2582.1,2581.8,0.78026677]
[1747708537635,1.494,2582.1,2581.8,3.21361677]
[1747708537841,2.26839,2582.1,2581.8,0.00581677]
[1747708538145,1.494,2582.1,2581.8,0.00581677]
[1747708538337,0.77441,2582.0,2581.8,0.00581677]
[1747708538636,1.494,2581.9,2581.8,0.78027677]
[1747708538841,3.2078,2582.7,2581.8,3.21361677]
[1747708539138,4.7459,2582.1,2581.8,0.00581677]
[1747708539340,10.518,2582.0,2581.8,0.00581677]
[1747708539639,1.5381,2581.9,2581.8,0.00581677]
[1747708540343,4.2781,2581.9,2581.8,0.00581677]
[1747708542043,4.2781,2581.9,2581.8,0.78027677]
[1747708542346,4.2781,2581.9,2581.8,0.00581677]
[1747708542545,4.2781,2581.9,2581.8,0.78027677]
[1747708543341,1.5381,2581.9,2581.8,0.78027677]
[1747708544347,1.5381,2581.9,2581.8,1.2113306]
[1747708545249,1.5381,2581.9,2581.8,0.78027677]
[1747708545953,2.31253,2581.9,2581.8,0.00581677]
[1747708546247,10.517,2582.1,2581.8,0.78025677]
[1747708546549,1.6076,2582.0,2581.8,0.00581677]
[1747708547439,0.77443,2581.9,2581.8,0.00581677]
[1747708547643,3.89162,2582.0,2581.8,0.00581677]
[1747708547841,0.77443,2581.9,2581.8,0.00581677]
[1747708548140,1.4889,2581.9,2581.8,0.00581677]
[1747708548341,1.4889,2581.9,2581.8,0.78027677]
[1747708548742,3.2078,2582.4,2581.8,0.78027677]
[1747708548943,12.78023,2582.3,2581.9,0.77443]
[1747708549140,0.77434,2582.2,2581.9,0.77443]
[1747708549344,1.4889,2582.1,2581.8,0.00581677]
[1747708549647,0.77442,2582.0,2581.8,0.00581677]
[1747708549952,1.4889,2581.9,2581.8,0.00581677]
[1747708550653,2.26333,2581.9,2581.8,0.00581677]
[1747708550851,2.26333,2581.9,2581.8,0.43818692]
[1747708551261,1.4889,2581.9,2581.8,0.43818692]
[1747708551552,2.26333,2581.9,2581.8,0.43818692]
[1747708553152,2.26333,2581.9,2581.8,0.00581677]
[1747708553650,1.93616,2581.8,2580.8,0.99719586]
[1747708553856,3.98253,2580.9,2580.8,0.99719586]
[1747708554045,14.48953,2580.9,2580.8,0.99719586]
[1747708554250,0.77492,2580.3,2579.9,3.2078]
[1747708554450,11.28192,2580.3,2579.9,3.2078]
[1747708554650,1.471,2580.2,2579.9,3.98283]
[1747708554856,1.471,2580.2,2580.0,1.2047977]
[1747708555158,1.471,2580.2,2580.0,0.4297977]
[1747708555448,1.471,2580.2,2580.0,2.0374977]
[1747708555840,1.471,2580.2,2580.0,7.0374977]
[1747708556045,0.00581677,2580.4,2580.3,0.77491]
[1747708556254,0.00581677,2580.4,2580.3,3.98271]
[1747708556654,0.00581677,2580.4,2580.3,8.98271]
[1747708556845,11.98,2581.1,2580.3,3.2078]
[1747708557251,0.77491,2580.3,2580.1,0.4297977]
[1747708557559,2.31764,2580.2,2580.1,0.4297977]
[1747708558156,0.775,2580.1,2579.9,3.2078]
[1747708558454,1.5427,2580.0,2579.9,3.2078]
[1747708559956,1.5427,2580.0,2579.9,3.98283]
[1747708560153,1.5427,2580.0,2579.9,3.2078]
[1747708560356,1.5576,2580.4,2579.9,5.0431]
[1747708560549,10.511,2580.3,2579.9,5.0431]
[1747708560750,13.12781,2580.3,2579.9,5.0431]
[1747708560960,12.3529,2580.3,2579.9,3.2078]
[1747708561459,0.77503,2579.9,2579.8,0.00581677]
[1747708561652,0.77502,2580.0,2579.8,0.00581677]
[1747708562053,1.8419,2579.9,2579.8,0.00581677]
[1747708563461,2.61693,2579.9,2579.8,0.00581677]
[1747708563757,5.82473,2579.9,2579.8,0.00581677]
[1747708563953,2.61693,2579.9,2579.8,0.00581677]
[1747708564356,1.8419,2579.9,2579.8,0.00581677]
[1747708564560,13.12793,2579.9,2579.8,0.00581677]
[1747708564858,13.12793,2579.9,2579.8,0.09068154]
[1747708565060,16.33573,2579.9,2579.8,0.09068154]
[1747708565453,5.82473,2579.9,2579.8,0.09068154]
[1747708565651,16.33773,2579.9,2579.8,0.09068154]
[1747708565852,21.33773,2579.9,2579.8,0.09068154]
[1747708566148,1.93803,2579.4,2578.5,3.2078]
[1747708566352,0.77537,2578.8,2578.6,1.7374]
[1747708566553,0.77534,2578.9,2578.6,1.7374]
[1747708566749,2.46987,2578.8,2578.6,1.7374]
[1747708566950,1.6945,2578.8,2578.6,1.7374]
[1747708567158,10.513,2579.3,2578.6,1.7374]
[1747708567358,1.6945,2579.2,2578.6,2.5128]
[1747708567557,0.77537,2578.8,2578.6,1.7374]
[1747708567756,3.2078,2579.1,2578.6,1.7374]
[1747708567960,3.2078,2579.4,2578.6,1.7374]
[1747708568153,11.28923,2579.3,2578.8,3.98315]
[1747708568354,1.6945,2579.2,2578.9,2.51272]
[1747708568563,3.2078,2579.4,2578.9,2.51272]
[1747708568564,10.514,2579.4,2578.9,1.7374]
[1747708568760,10.514,2579.3,2578.9,3.5027]
[1747708569063,0.7753,2579.0,2578.9,1.7374]
[1747708569261,0.7753,2579.0,2578.9,2.74]
[1747708569464,0.7753,2579.0,2578.4,0.00581677]
[1747708569465,0.77545,2578.5,2578.4,0.00581677]
[1747708569761,11.28945,2578.5,2578.4,0.00581677]
[1747708569956,10.514,2578.5,2578.4,0.00581677]
[1747708570166,10.514,2578.6,2578.4,2.74581677]
[1747708570460,0.77545,2578.5,2578.4,2.74581677]
[1747708570658,2.48705,2578.5,2578.4,2.74581677]
[1747708571258,2.48705,2578.5,2578.4,0.00581677]
[1747708571460,3.21361677,2578.7,2578.4,0.00581677]
[1747708571658,10.516,2578.6,2578.4,0.78128677]
[1747708571861,10.516,2578.6,2578.5,1.7559]
[1747708572062,0.77545,2578.5,2578.4,0.00581677]
[1747708572255,2.48705,2578.5,2578.4,0.00581677]
[1747708573166,2.48705,2578.5,2578.4,2.74581677]
[1747708574965,13.00505,2578.5,2578.4,2.74581677]
[1747708576967,0.7756,2578.0,2577.9,1.7559]
[1747708577165,11.2946,2578.0,2577.9,2.74]
[1747708581272,0.7756,2578.0,2577.9,2.74]
[1747708581569,11.2956,2578.0,2577.9,2.74]
[1747708582566,1.8535,2578.1,2577.9,2.74]
[1747708582567,2.62909,2578.1,2577.9,2.74]
[1747708582771,11.2966,2578.0,2577.9,2.74]
[1747708582965,13.0735,2578.0,2577.9,2.74]
[1747708583574,1.93916,2577.9,2577.1,5.0631]
[1747708583779,0.77581,2577.3,2577.2,1.8454]
[1747708584276,10.504,2577.4,2576.9,2.46543]
[1747708584570,0.77587,2577.1,2577.0,1.7824]
[1747708584866,0.7759,2577.0,2576.9,0.00581677]
[1747708585871,2.5876,2577.0,2576.9,0.00581677]
[1747708586867,1.8117,2577.0,2576.9,0.00581677]
[1747708587073,3.2078,2577.1,2576.9,2.74581677]
[1747708587273,3.2078,2577.1,2577.0,1.7824]
[1747708587678,12.98767,2577.1,2577.0,1.7824]
[1747708587891,1.7068,2577.1,2577.0,1.7824]
[1747708588187,3.21361677,2577.4,2577.0,1.7824]
[1747708588188,10.51081677,2577.4,2577.0,12.7302]
[1747708588471,10.51081677,2577.4,2577.1,0.77587]
[1747708588675,10.51081677,2577.4,2577.2,1.8522]
[1747708590278,0.77581,2577.3,2577.2,1.8522]
[1747708590477,12.99341677,2577.4,2577.0,5.9478]
[1747708590779,0.77582,2577.3,2577.1,1.8576]
[1747708590971,12.99341677,2577.4,2577.1,1.8576]
[1747708591173,1.71261677,2577.4,2577.1,1.8576]
[1747708591376,1.71261677,2577.4,2577.1,2.63346]
[1747708591577,0.00581677,2577.4,2577.1,2.63346]
[1747708591777,0.00581677,2577.4,2577.0,3.2078]
[1747708591778,0.78161677,2577.4,2577.2,1.8576]
[1747708591974,3.2078,2578.1,2577.3,3.2078]
[1747708592176,3.2078,2578.1,2577.4,4.40937]
[1747708592370,1.8768,2578.0,2577.4,3.6336]
[1747708592675,3.2078,2577.8,2577.4,1.8576]
[1747708592881,12.3838,2577.7,2577.4,1.8576]
[1747708593172,0.77574,2577.6,2577.4,1.8576]
[1747708593378,1.8768,2577.5,2577.4,1.8576]
[1747708595484,2.65255,2577.5,2577.3,1.7385]
[1747708595779,2.65255,2577.5,2577.4,0.42550454]
[1747708597284,0.77581,2577.4,2577.2,1.81006477]
[1747708597479,1.7228,2577.3,2577.2,1.81006477]
[1747708597680,0.77569,2577.7,2577.2,1.81006477]
[1747708597873,2.49852,2577.6,2577.2,2.58589477]
[1747708598071,13.00552,2577.6,2577.3,1.7855]
[1747708598377,10.507,2577.5,2577.4,0.77577]
[1747708598775,0.78148677,2577.8,2577.7,0.77569]
[1747708598776,0.00581677,2577.8,2577.7,0.77569]
[1747708599084,0.00581677,2577.8,2577.5,2.56124]
[1747708599282,1.72861677,2577.8,2577.5,2.56124]
[1747708599783,1.72861677,2577.8,2577.6,0.77572]
[1747708599984,1.72861677,2577.8,2577.5,2.56124]
[1747708600184,1.72861677,2577.8,2577.7,0.42639915]
[1747708600384,2.50427677,2577.8,2577.7,0.42639915]
[1747708600582,3.2078,2578.5,2577.7,5.42639915]
[1747708600884,5.37289991,2580.0,2578.5,3.2078]
[1747708601084,5.37289991,2580.0,2579.7,3.2078]
[1747708601387,5.37289991,2580.0,2579.8,1.7186]
[1747708601786,0.77503,2579.9,2579.8,1.7186]
[1747708601980,2.49953,2579.9,2579.8,1.7186]
[1747708602183,1.7245,2579.9,2579.8,4.4586]
[1747708604086,1.7245,2579.9,2579.8,1.7186]
[1747708604788,2.49953,2579.9,2579.8,1.7186]
[1747708604992,1.7245,2579.9,2579.8,1.7186]
[1747708605389,2.49953,2579.9,2579.7,3.2078]
[1747708605788,2.49953,2579.9,2579.7,4.9684]
[1747708606580,1.7245,2579.9,2579.7,4.9684]
[1747708606980,0.00581677,2580.2,2579.7,4.9684]
[1747708607191,0.00581677,2580.2,2579.6,0.00581677]
[1747708607192,0.00581677,2580.2,2580.1,3.2078]
[1747708608497,0.00581677,2580.2,2580.1,8.98277]
[1747708608697,0.00581677,2580.2,2580.1,10.88007]
[1747708609098,3.2078,2581.2,2580.6,0.77482]
[1747708609394,0.77474,2580.9,2580.7,1.763]
[1747708609588,1.8291,2580.8,2580.7,1.763]
[1747708609787,10.502,2581.1,2580.7,1.763]
[1747708609987,1.8291,2581.0,2580.7,1.763]
[1747708610497,10.499,2581.1,2580.8,3.98255]
[1747708610694,10.499,2581.1,2580.9,1.763]
[1747708611390,12.3281,2581.1,2580.9,1.763]
[1747708611588,1.8291,2581.1,2580.9,1.763]
[1747708611985,39.118,2581.5,2580.9,1.763]
[1747708612292,1.93595,2582.1,2580.9,1.763]
[1747708612293,0.77446,2581.8,2581.1,3.2078]
[1747708612482,0.77449,2581.7,2581.4,3.2078]
[1747708612682,0.77449,2581.7,2581.5,1.7672]
[1747708612683,1.7955,2581.7,2581.5,1.7672]
[1747708612890,2.56999,2581.7,2581.5,1.7672]
[1747708613897,1.7955,2581.7,2581.5,1.7672]
[1747708614092,10.474,2582.0,2581.5,1.7672]
[1747708614400,12.2695,2582.0,2581.8,3.2078]
[1747708614696,1.7955,2582.0,2581.8,3.2078]
[1747708614896,1.7955,2582.0,2581.9,1.7257]
[1747708615098,2.5699,2582.0,2581.9,1.7257]
[1747708615403,1.7955,2582.0,2581.9,1.7257]
[1747708616093,2.5699,2582.0,2581.9,1.7257]
[1747708616297,0.77443,2581.9,2581.8,3.2078]
[1747708616498,2.59803,2581.9,2581.8,3.2078]
[1747708617005,1.8236,2581.9,2581.4,3.2078]
[1747708617192,0.77455,2581.5,2581.4,3.2078]
[1747708617698,0.77455,2581.5,2581.0,2.61158]
[1747708617699,0.77455,2581.5,2581.1,3.2078]
[1747708617916,1.9209,2581.4,2581.1,3.2078]
[1747708618288,12.3919,2581.4,2580.8,3.2078]
[1747708618496,0.7747,2581.0,2580.8,3.2078]
[1747708619194,3.5147,2581.0,2580.4,3.2078]
[1747708619401,3.5147,2581.0,2580.5,1.7867]
[1747708619602,3.5147,2581.0,2580.5,2.56154]
[1747708619901,3.5147,2581.0,2580.5,1.7867]
[1747708620099,0.7747,2581.0,2580.5,1.7867]
[1747708620403,0.7747,2581.0,2580.4,3.2078]
[1747708621097,0.7747,2581.0,2580.5,1.8353]
[1747708621303,2.74,2581.0,2580.7,3.2078]
[1747708621507,8.5147,2581.0,2580.3,3.2078]
[1747708621705,0.77488,2580.4,2580.3,3.2078]
[1747708621903,11.24481,2580.7,2580.3,3.2078]
[1747708622104,1.836,2580.6,2580.3,3.2078]
[1747708622602,0.00581677,2580.7,2580.4,2.61017]
[1747708622905,0.00581677,2580.7,2580.6,3.98262]
[1747708623413,12.306,2581.6,2581.0,0.77468]
[1747708623703,0.77464,2581.2,2581.1,3.2078]
[1747708623903,0.77482,2580.6,2580.5,5.9478]
[1747708624095,3.51482,2580.6,2580.5,3.2078]
[1747708624496,4.486,2580.6,2580.5,3.2078]
[1747708624705,3.51482,2580.6,2580.3,1.9237]
[1747708625005,2.74,2580.6,2580.3,1.9237]
[1747708625202,10.47,2581.0,2580.3,1.9237]
[1747708625396,1.746,2580.9,2580.6,0.77479]
[1747708625598,1.746,2580.9,2580.3,0.08486477]
[1747708625892,0.7748,2580.7,2580.5,3.2078]
[1747708626096,1.746,2580.9,2580.3,0.85976477]
[1747708626097,0.77488,2580.4,2580.3,0.08486477]
[1747708626605,0.77488,2580.4,2580.2,3.21361677]
[1747708626803,2.52091,2580.3,2580.2,3.21361677]
[1747708627615,2.52091,2580.3,2580.2,0.00581677]
[1747708628311,5.26091,2580.3,2580.2,0.00581677]
[1747708628809,10.26091,2580.3,2580.2,0.00581677]
[1747708629007,10.26091,2580.3,2579.9,3.2078]
[1747708629008,0.775,2580.0,2579.9,3.2078]
[1747708629308,0.775,2580.0,2579.3,0.73626204]
[1747708629309,0.77518,2579.4,2579.3,3.2078]
[1747708629515,0.77527,2579.1,2579.0,3.57274478]
[1747708629715,10.471,2579.5,2579.0,3.57274478]
[1747708629900,0.77521,2579.3,2579.0,5.46884478]
[1747708630105,1.9165,2579.2,2579.0,5.47466155]
[1747708630605,0.00581677,2579.5,2579.1,0.77525]